Workbook

Sheet Hinweise
A1: Geschäftsgang 4
A3: Voraussetzungen
A4: Um den Geschäftsgang buchen zu können müssen Sie Kenntnisse über die folgenden Lehrninhalte haben:
A5: Buchungen auf Bestandskonten
A6: Buchungen auf Erfolgskonten
A7: Bestandsveränderungen
A8: Umsatzsteuer
A10: Vorgehensweise
A11: 1. Wählen Sie die Tabelle "Grundbuch".
A13: 2. Buchen Sie die Geschäftsvorfälle
A14: entweder durch Direkteingabe in die entsprechenden Felder des Grundbuchs (Kontennummern und Beträge)
A15: oder durch Aufruf von Buchungsfenstern. (Klicken Sie dazu jeweils auf die Schaltfläche "Buchung" und beenden
A16: Sie die Eingabe mit "OK".)
A17: Die Kontennummern sind vierstellig anzugeben. (siehe Kontenplan). Bei zusammengesetzten Buchungssätzen
A18: sind die Buchungen nach der Höhe der Beträge geordnet vorzunehmen.
A20: 3. Sie können sich den Kontenplan mit Kontennummern jederzeit durch Klick auf den
A21: entsprechenden Button anzeigen lassen.
A23: 4. Die Richtigkeit Ihrer Buchungen wird bestätigt oder Sie werden auf
A24: Fehler hingewiesen. (Ohne Buchung werden Fehler angezeigt.)
A26: 5. Hauptbuch, Gewinn und Verlust und Bilanzbuch werden automatisch erstellt.

Sheet Grundbuch
A2: Geschäftsvorfälle
A3: Grundbuch
G4: 0.19
A6: 1. | B6: Zieleinkauf von Baumwollstoffen, | D6: netto | E6: 18500 | F6: =IF(AND(B10="2000",B11="2600",E10="4400"),"Die Konten sind richtig!","Mindestens ein Konto ist falsch!") -> Mindestens ein Konto ist falsch!
A7: Geschäftsvorfall | D7: USt. | E7: =E6*G4 -> 3515 | F7: =IF(AND(D10=E6,D11=E7,G10=E8),"Die Beträge sind richtig!","Mindestens ein Betrag ist falsch!") -> Mindestens ein Betrag ist falsch!
D8: brutto | E8: =SUM(E6:E7) -> 22015 | F8: =IF(AND(F6="Die Konten sind richtig!",F7="Die Beträge sind richtig!"),"Alles richtig!","Es sind noch Fehler vorhanden!") -> Es sind noch Fehler vorhanden!
B9: Soll | C9: Konto | D9: € | E9: Haben | F9: Konto | G9: €
A10: Buchungssatz | C10: =IF(B10="","",VLOOKUP(B10,Kontenplan!$A$4:$B$35,2)) ->  | F10: =IF(E10="","",VLOOKUP(E10,Kontenplan!$A$4:$B$35,2)) -> 
C11: =IF(B11="","",VLOOKUP(B11,Kontenplan!$A$4:$B$35,2)) -> 
A13: 2. | B13: Banküberweisung für - Löhne | E13: 22500 | F13: =IF(AND(B17="6200",B18="6300",E17="2800"),"Die Konten sind richtig!","Mindestens ein Konto ist falsch!") -> Mindestens ein Konto ist falsch!
A14: Geschäftsvorfall | C14: - Gehälter | E14: 32600 | F14: =IF(AND(D17=E13,D18=E14,G17=E15),"Die Beträge sind richtig!","Mindestens ein Betrag ist falsch!") -> Mindestens ein Betrag ist falsch!
C15: Banklastschrift | E15: =SUM(E13:E14) -> 55100 | F15: =IF(AND(F13="Die Konten sind richtig!",F14="Die Beträge sind richtig!"),"Alles richtig!","Es sind noch Fehler vorhanden!") -> Es sind noch Fehler vorhanden!
B16: Soll | C16: Konto | D16: € | E16: Haben | F16: Konto | G16: €
A17: Buchungssatz | C17: =IF(B17="","",VLOOKUP(B17,Kontenplan!$A$4:$B$35,2)) ->  | F17: =IF(E17="","",VLOOKUP(E17,Kontenplan!$A$4:$B$35,2)) -> 
C18: =IF(B18="","",VLOOKUP(B18,Kontenplan!$A$4:$B$35,2)) -> 
A20: 3. | B20: Die Boutique Simone Sommer begleicht eine Ausgangsrechnung durch Banküberweisung, | E20: 4200 | F20: =IF(AND(B24="2800",E24="2400"),"Die Konten sind richtig!","Mindestens ein Konto ist falsch!") -> Mindestens ein Konto ist falsch!
A21: Geschäftsvorfall | F21: =IF(AND(D24=E20,G24=E20),"Die Beträge sind richtig!","Mindestens ein Betrag ist falsch!") -> Mindestens ein Betrag ist falsch!
F22: =IF(AND(F20="Die Konten sind richtig!",F21="Die Beträge sind richtig!"),"Alles richtig!","Es sind noch Fehler vorhanden!") -> Es sind noch Fehler vorhanden!
B23: Soll | C23: Konto | D23: € | E23: Haben | F23: Konto | G23: €
A24: Buchungssatz | C24: =IF(B24="","",VLOOKUP(B24,Kontenplan!$A$4:$B$35,2)) ->  | F24: =IF(E24="","",VLOOKUP(E24,Kontenplan!$A$4:$B$35,2)) -> 
A27: 4. | B27: Barzahlung für eine Kfz-Reparatur, | D27: netto | E27: 1100 | F27: =IF(AND(B31="6160",B32="2600",E31="2880"),"Die Konten sind richtig!","Mindestens ein Konto ist falsch!") -> Mindestens ein Konto ist falsch!
A28: Geschäftsvorfall | D28: USt. | E28: =E27*G4 -> 209 | F28: =IF(AND(D31=E27,D32=E28,G31=E29),"Die Beträge sind richtig!","Mindestens ein Betrag ist falsch!") -> Mindestens ein Betrag ist falsch!
D29: brutto | E29: =SUM(E27:E28) -> 1309 | F29: =IF(AND(F27="Die Konten sind richtig!",F28="Die Beträge sind richtig!"),"Alles richtig!","Es sind noch Fehler vorhanden!") -> Es sind noch Fehler vorhanden!
B30: Soll | C30: Konto | D30: € | E30: Haben | F30: Konto | G30: €
A31: Buchungssatz | C31: =IF(B31="","",VLOOKUP(B31,Kontenplan!$A$4:$B$35,2)) ->  | F31: =IF(E31="","",VLOOKUP(E31,Kontenplan!$A$4:$B$35,2)) -> 
C32: =IF(B32="","",VLOOKUP(B32,Kontenplan!$A$4:$B$35,2)) -> 
A34: 5. | B34: Verbrauch lt. Materialentnahmescheine für | F34: =IF(AND(B39="6000",E39="2000",B40="6020",E40="2020",B41="6030",E41="2030"),"Die Konten sind richtig!","Mindestens ein Konto ist falsch!") -> Mindestens ein Konto ist falsch!
A35: Geschäftsvorfall | C35: - Baumwolle | E35: 8300
C36: - Reißverschlüsse | E36: 820 | F36: =IF(AND(D39=E35,D40=E36,D41=E37,G39=E35,G40=E36,G41=E37),"Die Beträge sind richtig!","Mindestens ein Betrag ist falsch!") -> Mindestens ein Betrag ist falsch!
C37: - Schmierstoffe | E37: 220 | F37: =IF(AND(F34="Die Konten sind richtig!",F36="Die Beträge sind richtig!"),"Alles richtig!","Es sind noch Fehler vorhanden!") -> Es sind noch Fehler vorhanden!
B38: Soll | C38: Konto | D38: € | E38: Haben | F38: Konto | G38: €
A39: Buchungssatz | C39: =IF(B39="","",VLOOKUP(B39,Kontenplan!$A$4:$B$35,2)) ->  | F39: =IF(E39="","",VLOOKUP(E39,Kontenplan!$A$4:$B$35,2)) -> 
C40: =IF(B40="","",VLOOKUP(B40,Kontenplan!$A$4:$B$35,2)) ->  | F40: =IF(E40="","",VLOOKUP(E40,Kontenplan!$A$4:$B$35,2)) -> 
C41: =IF(B41="","",VLOOKUP(B41,Kontenplan!$A$4:$B$35,2)) ->  | F41: =IF(E41="","",VLOOKUP(E41,Kontenplan!$A$4:$B$35,2)) -> 
A43: 6. | B43: Die ZIP GmbH belastet uns mit Zinsen, | E43: 60 | F43: =IF(AND(B47="7510",E47="4400"),"Die Konten sind richtig!","Mindestens ein Konto ist falsch!") -> Mindestens ein Konto ist falsch!
A44: Geschäftsvorfall | F44: =IF(AND(D47=E43,G47=E43),"Die Beträge sind richtig!","Mindestens ein Betrag ist falsch!") -> Mindestens ein Betrag ist falsch!
F45: =IF(AND(F43="Die Konten sind richtig!",F44="Die Beträge sind richtig!"),"Alles richtig!","Es sind noch Fehler vorhanden!") -> Es sind noch Fehler vorhanden!
B46: Soll | C46: Konto | D46: € | E46: Haben | F46: Konto | G46: €
A47: Buchungssatz | C47: =IF(B47="","",VLOOKUP(B47,Kontenplan!$A$4:$B$35,2)) ->  | F47: =IF(E47="","",VLOOKUP(E47,Kontenplan!$A$4:$B$35,2)) -> 
A50: 7. | B50: Zieleinkauf eines PC's, | D50: netto | E50: 1450 | F50: =IF(AND(B54="0800",B55="2600",E54="4400"),"Die Konten sind richtig!","Mindestens ein Konto ist falsch!") -> Mindestens ein Konto ist falsch!
A51: Geschäftsvorfall | D51: USt. | E51: =E50*G4 -> 275.5 | F51: =IF(AND(D54=E50,D55=E51,G54=E52),"Die Beträge sind richtig!","Mindestens ein Betrag ist falsch!") -> Mindestens ein Betrag ist falsch!
D52: brutto | E52: =SUM(E50:E51) -> 1725.5 | F52: =IF(AND(F50="Die Konten sind richtig!",F51="Die Beträge sind richtig!"),"Alles richtig!","Es sind noch Fehler vorhanden!") -> Es sind noch Fehler vorhanden!
B53: Soll | C53: Konto | D53: € | E53: Haben | F53: Konto | G53: €
A54: Buchungssatz | C54: =IF(B54="","",VLOOKUP(B54,Kontenplan!$A$4:$B$35,2)) ->  | F54: =IF(E54="","",VLOOKUP(E54,Kontenplan!$A$4:$B$35,2)) -> 
C55: =IF(B55="","",VLOOKUP(B55,Kontenplan!$A$4:$B$35,2)) -> 
A57: 8. | B57: Verkauf von Badeanzügen gegen Banküberweisung, | D57: netto | E57: 45600 | F57: =IF(AND(B61="2800",E61="5000",E62="4800"),"Die Konten sind richtig!","Mindestens ein Konto ist falsch!") -> Mindestens ein Konto ist falsch!
A58: Geschäftsvorfall | D58: USt. | E58: =E57*G4 -> 8664 | F58: =IF(AND(D61=E59,G61=E57,G62=E58),"Die Beträge sind richtig!","Mindestens ein Betrag ist falsch!") -> Mindestens ein Betrag ist falsch!
D59: brutto | E59: =SUM(E57:E58) -> 54264 | F59: =IF(AND(F57="Die Konten sind richtig!",F58="Die Beträge sind richtig!"),"Alles richtig!","Es sind noch Fehler vorhanden!") -> Es sind noch Fehler vorhanden!
B60: Soll | C60: Konto | D60: € | E60: Haben | F60: Konto | G60: €
A61: Buchungssatz | C61: =IF(B61="","",VLOOKUP(B61,Kontenplan!$A$4:$B$35,2)) ->  | F61: =IF(E61="","",VLOOKUP(E61,Kontenplan!$A$4:$B$35,2)) -> 
F62: =IF(E62="","",VLOOKUP(E62,Kontenplan!$A$4:$B$35,2)) -> 
A64: 9. | B64: Banklastschrift für - Steuern | E64: 1550 | F64: =IF(AND(B68="7000",B69="7510",E68="2800"),"Die Konten sind richtig!","Mindestens ein Konto ist falsch!") -> Mindestens ein Konto ist falsch!
A65: Geschäftsvorfall | C65: - Darlehenszinsen | E65: 560 | F65: =IF(AND(D68=E64,D69=E65,G68=E66),"Die Beträge sind richtig!","Mindestens ein Betrag ist falsch!") -> Mindestens ein Betrag ist falsch!
C66: Banklastschrift | E66: =E64+E65 -> 2110 | F66: =IF(AND(F64="Die Konten sind richtig!",F65="Die Beträge sind richtig!"),"Alles richtig!","Es sind noch Fehler vorhanden!") -> Es sind noch Fehler vorhanden!
B67: Soll | C67: Konto | D67: € | E67: Haben | F67: Konto | G67: €
A68: Buchungssatz | C68: =IF(B68="","",VLOOKUP(B68,Kontenplan!$A$4:$B$35,2)) ->  | F68: =IF(E68="","",VLOOKUP(E68,Kontenplan!$A$4:$B$35,2)) -> 
C69: =IF(B69="","",VLOOKUP(B69,Kontenplan!$A$4:$B$35,2)) -> 
A71: 10. | B71: Barzahlung für Postwertzeichen, | E71: 100 | F71: =IF(AND(B75="6820",E75="2880"),"Die Konten sind richtig!","Mindestens ein Konto ist falsch!") -> Mindestens ein Konto ist falsch!
A72: Geschäftsvorfall | F72: =IF(AND(D75=E71,G75=E71),"Die Beträge sind richtig!","Mindestens ein Betrag ist falsch!") -> Mindestens ein Betrag ist falsch!
F73: =IF(AND(F71="Die Konten sind richtig!",F72="Die Beträge sind richtig!"),"Alles richtig!","Es sind noch Fehler vorhanden!") -> Es sind noch Fehler vorhanden!
B74: Soll | C74: Konto | D74: € | E74: Haben | F74: Konto | G74: €
A75: Buchungssatz | C75: =IF(B75="","",VLOOKUP(B75,Kontenplan!$A$4:$B$35,2)) ->  | F75: =IF(E75="","",VLOOKUP(E75,Kontenplan!$A$4:$B$35,2)) -> 
A78: 11. | B78: Barverkauf eines gebrauchten PC, | D78: netto | E78: 400 | F78: =IF(AND(B82="2880",E82="0800",E83="4800"),"Die Konten sind richtig!","Mindestens ein Konto ist falsch!") -> Mindestens ein Konto ist falsch!
A79: Geschäftsvorfall | D79: USt. | E79: =E78*G4 -> 76 | F79: =IF(AND(D82=E80,G82=E78,G83=E79),"Die Beträge sind richtig!","Mindestens ein Betrag ist falsch!") -> Mindestens ein Betrag ist falsch!
D80: brutto | E80: =SUM(E78:E79) -> 476 | F80: =IF(AND(F78="Die Konten sind richtig!",F79="Die Beträge sind richtig!"),"Alles richtig!","Es sind noch Fehler vorhanden!") -> Es sind noch Fehler vorhanden!
B81: Soll | C81: Konto | D81: € | E81: Haben | F81: Konto | G81: €
A82: Buchungssatz | C82: =IF(B82="","",VLOOKUP(B82,Kontenplan!$A$4:$B$35,2)) ->  | F82: =IF(E82="","",VLOOKUP(E82,Kontenplan!$A$4:$B$35,2)) -> 
F83: =IF(E83="","",VLOOKUP(E83,Kontenplan!$A$4:$B$35,2)) -> 
A85: 12. | B85: Verkauf von Kleidern auf Ziel an die Route 66 GmbH lt. Ausgangsrechnung | D85: netto | E85: 23000 | F85: =IF(AND(B89="2400",E89="5000",E90="4800"),"Die Konten sind richtig!","Mindestens ein Konto ist falsch!") -> Mindestens ein Konto ist falsch!
A86: Geschäftsvorfall | D86: USt. | E86: =E85*G4 -> 4370 | F86: =IF(AND(D89=E87,G89=E85,G90=E86),"Die Beträge sind richtig!","Mindestens ein Betrag ist falsch!") -> Mindestens ein Betrag ist falsch!
D87: brutto | E87: =SUM(E85:E86) -> 27370 | F87: =IF(AND(F85="Die Konten sind richtig!",F86="Die Beträge sind richtig!"),"Alles richtig!","Es sind noch Fehler vorhanden!") -> Es sind noch Fehler vorhanden!
B88: Soll | C88: Konto | D88: € | E88: Haben | F88: Konto | G88: €
A89: Buchungssatz | C89: =IF(B89="","",VLOOKUP(B89,Kontenplan!$A$4:$B$35,2)) ->  | F89: =IF(E89="","",VLOOKUP(E89,Kontenplan!$A$4:$B$35,2)) -> 
F90: =IF(E90="","",VLOOKUP(E90,Kontenplan!$A$4:$B$35,2)) -> 
A92: Abschlussangaben
A93: A1 | B93: Endbestände lt. Invetur | F93: =IF(AND(B97="8010",E97="2100",B98="8010",E98="2200"),"Die Konten sind richtig!","Mindestens ein Konto ist falsch!") -> Mindestens ein Konto ist falsch!
A94: Abschlussangabe | C94: - Unfertige Erzeugnisse | E94: 17400 | F94: =IF(AND(D97=E94,D98=E95,G97=E94,G98=E95),"Die Beträge sind richtig!","Mindestens ein Betrag ist falsch!") -> Mindestens ein Betrag ist falsch!
C95: - Fertige Erzeugnisse | E95: 56300 | F95: =IF(AND(F93="Die Konten sind richtig!",F94="Die Beträge sind richtig!"),"Alles richtig!","Es sind noch Fehler vorhanden!") -> Es sind noch Fehler vorhanden!
B96: Soll | C96: Konto | D96: € | E96: Haben | F96: Konto | G96: €
A97: Buchungssatz | C97: =IF(B97="","",VLOOKUP(B97,Kontenplan!$A$4:$B$35,2)) ->  | F97: =IF(E97="","",VLOOKUP(E97,Kontenplan!$A$4:$B$35,2)) -> 
C98: =IF(B98="","",VLOOKUP(B98,Kontenplan!$A$4:$B$35,2)) ->  | F98: =IF(E98="","",VLOOKUP(E98,Kontenplan!$A$4:$B$35,2)) -> 
A100: =IF(AND(F8="Alles richtig!",F15="Alles richtig!",F22="Alles richtig!",F29="Alles richtig!",F37="Alles richtig!",F45="Alles richtig!",F52="Alles richtig!",F59="Alles richtig!",F66="Alles richtig!",F73="Alles richtig!",F80="Alles richtig!",F87="Alles richtig!",F95="Alles richtig!",F95="Alles richtig!"),"Super gebucht, die Aufgabe ist gelöst!","Bilden Sie alle Buchungssätze!") -> Bilden Sie alle Buchungssätze!

Sheet Hauptbuch
A1: Hauptbuch
A3: Soll | B3: 0510 Bebaute Grundstücke | J3: Haben
A4: AB | B4: 8000 | E4: =Bilanzbuch!C4 -> 330000 | F4: SB | G4: 8010 | J4: =E4 -> 330000
A6: Soll | B6: 0700 Technische Anlagen und Maschinen | J6: Haben
A7: AB | B7: 8000 | E7: =Bilanzbuch!C5 -> 380500 | F7: SB | G7: 8010 | J7: =E7 -> 380500
A9: Soll | B9: 0800 Betriebs- und Geschäftsausstattung | J9: Haben
A10: AB | B10: 8000 | E10: =Bilanzbuch!C6 -> 54900 | F10: 11. | G10: 2880 | J10: =Grundbuch!G82 -> 0
A11: 7. | B11: 4400 | E11: =Grundbuch!D54 -> 0 | F11: SB | G11: 8010 | J11: =J12-J10 -> 54900
E12: =SUM(E10:E11) -> 54900 | J12: =E12 -> 54900
A14: Soll | B14: 0840 Fuhrpark | J14: Haben
A15: AB | B15: 8000 | E15: =Bilanzbuch!C7 -> 116000 | F15: SB | G15: 8010 | J15: =E15 -> 116000
A17: Soll | B17: 2000 Rohstoffe | J17: Haben
A18: AB | B18: 8000 | E18: =Bilanzbuch!C8 -> 200000 | F18: 5. | G18: 6000 | J18: =Grundbuch!G39 -> 0
A19: 1. | B19: 4400 | E19: =Grundbuch!D10 -> 0 | F19: SB | G19: 8010 | J19: =J20-J18 -> 200000
E20: =SUM(E18:E19) -> 200000 | J20: =E20 -> 200000
A22: Soll | B22: 2020 Hilfsstoffe | J22: Haben
A23: AB | B23: 8000 | E23: =Bilanzbuch!C9 -> 22500 | F23: 5. | G23: 6020 | J23: =Grundbuch!G40 -> 0
F24: SB | G24: 8010 | J24: =J25-J23 -> 22500
E25: =SUM(E23:E24) -> 22500 | J25: =E25 -> 22500
A27: Soll | B27: 2030 Betriebsstoffe | J27: Haben
A28: AB | B28: 8000 | E28: =Bilanzbuch!C10 -> 6700 | F28: 5. | G28: 6030 | J28: =Grundbuch!G41 -> 0
F29: SB | G29: 8010 | J29: =J30-J28 -> 6700
E30: =SUM(E28:E29) -> 6700 | J30: =E30 -> 6700
A32: Soll | B32: 2100 Unfertige Erzeugnisse | J32: Haben
A33: AB | B33: 8000 | E33: =Bilanzbuch!C11 -> 64500 | F33: A1 | G33: 8010 | J33: =Grundbuch!G97 -> 0
A34: =IF(E33<J33,"A","") ->  | B34: =IF(E33<J33,5200,"") ->  | E34: =IF(E33<J33,E35-E33,"") ->  | F34: =IF(E33>J33,"A","") -> A | G34: =IF(J33<E33,5200,"") -> 5200 | J34: =IF($E$33>$J$33,J35-J33,"") -> 64500
E35: =IF($E$33>$J$33,$E$33,$J$33) -> 64500 | J35: =IF($E$33>$J$33,$E$33,$J$33) -> 64500
A37: Soll | B37: 2200 Fertige Erzeugnisse | J37: Haben
A38: AB | B38: 8000 | E38: =Bilanzbuch!C12 -> 19000 | F38: A1 | G38: 8010 | J38: =Grundbuch!G98 -> 0
A39: =IF(E38<J38,"A","") ->  | B39: =IF(E38<J38,5200,"") ->  | E39: =IF(E38<E40,E40-E38,"") ->  | F39: =IF(J38<E38,"A","") -> A | G39: =IF(J38<E38,5200,"") -> 5200 | J39: =IF(J38<E38,J40-J38,"") -> 19000
E40: =IF(E38>J38,E38,J38) -> 19000 | J40: =IF(E38>J38,E38,J38) -> 19000
A42: Soll | B42: 2400 Forderungen aus Lieferungen und Leistungen | J42: Haben
A43: AB | B43: 8000 | E43: =Bilanzbuch!C13 -> 45600 | F43: 3. | G43: 2800 | J43: =Grundbuch!G24 -> 0
A44: 12. | B44: 5000 | C44: 4800 | E44: =Grundbuch!D89 -> 0 | F44: SB | G44: 8010 | J44: =J45-J43 -> 45600
E45: =SUM(E43:E44) -> 45600 | J45: =E45 -> 45600
A47: Soll | B47: 2600 Vorsteuer | J47: Haben
A48: 1. | B48: 4400 | E48: =Grundbuch!D11 -> 0 | F48: SB | G48: 4800 | J48: =J51 -> 0
A49: 4. | B49: 2880 | E49: =Grundbuch!D32 -> 0
A50: 7. | B50: 4400 | E50: =Grundbuch!D55 -> 0
E51: =SUM(E48:E50) -> 0 | J51: =E51 -> 0
A53: Soll | B53: 2800 Kreditinstitute/Bank | J53: Haben
A54: AB | B54: 8000 | E54: =Bilanzbuch!C14 -> 112600 | F54: 2. | G54: 6200 | H54: 6300 | J54: =Grundbuch!G17 -> 0
A55: 3. | B55: 2400 | E55: =Grundbuch!D24 -> 0 | F55: 9. | G55: 7000 | H55: 7510 | J55: =Grundbuch!G68 -> 0
A56: 8. | B56: 5000 | C56: 4800 | E56: =Grundbuch!D61 -> 0 | F56: SB | G56: 8010 | J56: =J57-J54-J55 -> 112600
E57: =SUM(E54:E56) -> 112600 | J57: =E57 -> 112600
A59: Soll | B59: 2880 Kasse | J59: Haben
A60: AB | B60: 8000 | E60: =Bilanzbuch!C15 -> 9800 | F60: 4. | G60: 6160 | H60: 2600 | J60: =Grundbuch!G31 -> 0
A61: 11. | B61: 0800 | C61: 4800 | E61: =Grundbuch!D82 -> 0 | F61: 10. | G61: 6820 | J61: =Grundbuch!G75 -> 0
F62: SB | G62: 8010 | J62: =J63-SUM(J60:J61) -> 9800
E63: =SUM(E60:E62) -> 9800 | J63: =E63 -> 9800
A65: Soll | B65: 3000 Eigenkapital | J65: Haben
A66: =IF(GuV!$F$14>0,"A","") -> A | B66: =IF(GuV!$F$14>0,"8020","") -> 8020 | E66: =IF(GuV!$F$14>0,GuV!$F$14,0) -> 83500 | F66: AB | G66: 8000 | J66: =Bilanzbuch!F4 -> 698100
A67: SB | B67: 8010 | E67: =E68-E66 -> 614600 | F67: =IF(GuV!$C$14>0,"A","") ->  | G67: =IF(GuV!$C$14>0,"8020","") ->  | J67: =IF(GuV!$C$14>0,GuV!$C$14,0) -> 0
E68: =J68 -> 698100 | J68: =SUM(J66:J67) -> 698100
A70: Soll | B70: 4200 Verbindlichkeiten gegenüber Kreditinstituten (Darlehen) | J70: Haben
A71: SB | B71: 8010 | E71: =J71 -> 534000 | F71: AB | G71: 8000 | J71: =Bilanzbuch!F5 -> 534000
A73: Soll | B73: 4400 Verbindlichkeiten aus Lieferungen und Leistungen | J73: Haben
A74: SB | B74: 8010 | E74: =E78 -> 118900 | F74: AB | G74: 8000 | J74: =Bilanzbuch!F6 -> 118900
F75: 1. | G75: 2000 | H75: 2600 | J75: =Grundbuch!G10 -> 0
F76: 6. | G76: 7510 | J76: =Grundbuch!G47 -> 0
F77: 7. | G77: 0800 | H77: 2600 | J77: =Grundbuch!G54 -> 0
E78: =J78 -> 118900 | J78: =SUM(J74:J77) -> 118900
A80: Soll | B80: 4800 Umsatzsteuer | J80: Haben
A81: A | B81: 2600 | E81: =J48 -> 0 | F81: AB | G81: 8000 | J81: =Bilanzbuch!F7 -> 11100
A82: SB | B82: 8010 | E82: =E85-E81 -> 11100 | F82: 8. | G82: 2800 | J82: =Grundbuch!G62 -> 0
F83: 11. | G83: 2880 | J83: =Grundbuch!G83 -> 0
F84: 12. | G84: 2400 | J84: =Grundbuch!G90 -> 0
E85: =J85 -> 11100 | J85: =SUM(J81:J84) -> 11100
A87: Soll | B87: 5000 Umsatzerlöse | J87: Haben
A88: A | B88: 8020 | E88: =E90 -> 0 | F88: 8. | G88: 2800 | J88: =Grundbuch!G61 -> 0
F89: 12. | G89: 2400 | J89: =Grundbuch!G89 -> 0
E90: =J90 -> 0 | J90: =SUM(J88:J89) -> 0
A92: Soll | B92: 5200 Bestandsveränderunen | J92: Haben
A93: =IF(J33<E33,"A","") -> A | B93: =IF(J33<E33,2100,"") -> 2100 | E93: =IF(J33<E33,J34,0) -> 64500 | F93: =IF(E33<J33,"A","") ->  | G93: =IF(E33<J33,2100,"") ->  | J93: =IF(E33<J33,E34,0) -> 0
A94: =IF(J38<E38,"A","") -> A | B94: =IF(J38<E38,2200,"") -> 2200 | E94: =IF(J38<E38,J39,0) -> 19000 | F94: =IF(E38<J38,"A","") ->  | G94: =IF(E38<J38,2200,"") ->  | J94: =IF(E38<J38,E39,0) -> 0
A95: =IF(($J$93+$J$94)>($E$93+$E$94),"A","") ->  | B95: =IF(($J$93+$J$94)>($E$93+$E$94),"8020","") ->  | E95: =IF(($J$93+$J$94)>($E$93+$E$94),($J$93+$J$94)-(E93+E94),0) -> 0 | F95: =IF(($J$93+$J$94)<($E$93+$E$94),"A","") -> A | G95: =IF(($J$93+$J$94)<($E$93+$E$94),"8020","") -> 8020 | J95: =IF(($J$93+$J$94)<($E$93+$E$94),($E$93+$E$94)-(J93+J94),0) -> 83500
E96: =IF(($J$93+$J$94)>($E$93+$E$94),($J$93+$J$94),($E$93+$E$94)) -> 83500 | J96: =IF(($J$93+$J$94)>($E$93+$E$94),($J$93+$J$94),($E$93+$E$94)) -> 83500
A98: Soll | B98: 6000 Aufwendungen für Rohstoffe | J98: Haben
A99: 5. | B99: 2000 | E99: =Grundbuch!D39 -> 0 | F99: A | G99: 8020 | J99: =E99 -> 0
A101: Soll | B101: 6020 Aufwendungen für Hilfsstoffe | J101: Haben
A102: 5. | B102: 2020 | E102: =Grundbuch!D40 -> 0 | F102: A | G102: 8020 | J102: =E102 -> 0
A104: Soll | B104: 6030 Aufwendungen für Betriebsstoffe | J104: Haben
A105: 5. | B105: 2030 | E105: =Grundbuch!D41 -> 0 | F105: A | G105: 8020 | J105: =E105 -> 0
A107: Soll | B107: 6160 Fremdinstandhaltung | J107: Haben
A108: 4. | B108: 2880 | E108: =Grundbuch!D31 -> 0 | F108: A | G108: 8020 | J108: =E108 -> 0
A110: Soll | B110: 6200 Löhne | J110: Haben
A111: 2. | B111: 2800 | E111: =Grundbuch!D17 -> 0 | F111: A | G111: 8020 | J111: =E111 -> 0
A113: Soll | B113: 6300 Gehälter | J113: Haben
A114: 2. | B114: 2800 | E114: =Grundbuch!D18 -> 0 | F114: A | G114: 8020 | J114: =E114 -> 0
A116: Soll | B116: 6820 Portokosten | J116: Haben
A117: 10. | B117: 2880 | E117: =Grundbuch!D75 -> 0 | F117: A | G117: 8020 | J117: =E117 -> 0
A119: Soll | B119: 7000 Betriebliche Steuern | J119: Haben
A120: 9. | B120: 2800 | E120: =Grundbuch!D68 -> 0 | F120: A | G120: 8020 | J120: =E120 -> 0
A122: Soll | B122: 7510 Zinsaufwendungen | J122: Haben
A123: 6. | B123: 4400 | E123: =Grundbuch!D47 -> 0 | F123: A | G123: 8020 | J123: =J125 -> 0
A124: 9. | B124: 2800 | E124: =Grundbuch!D69 -> 0
E125: =E123+E124 -> 0 | J125: =E125 -> 0

Sheet GuV
A1: Gewinn- und Verlustrechnung
A3: Soll | B3: 8020 Gewinn und Verlust | F3: Haben
A4: 5200 | B4: Bestandsveränderungen | C4: =IF(Hauptbuch!J95>0,Hauptbuch!J95,0) -> 83500 | D4: 5000 | E4: Umsatzerlöse | F4: =Hauptbuch!E88 -> 0
A5: 6000 | B5: Aufwendungen für Rohstoffe | C5: =Hauptbuch!J99 -> 0 | D5: 5200 | E5: Bestandsveränderungen | F5: =IF(Hauptbuch!E95>0,Hauptbuch!E95,0) -> 0
A6: 6020 | B6: Aufwendungen für Hilfsstoffe | C6: =Hauptbuch!E102 -> 0
A7: 6030 | B7: Aufwendungen für Betriebsstoffe | C7: =Hauptbuch!J105 -> 0
A8: 6160 | B8: Fremdinstandhaltung | C8: =Hauptbuch!J108 -> 0
A9: 6200 | B9: Löhne | C9: =Hauptbuch!J111 -> 0
A10: 6300 | B10: Gehälter | C10: =Hauptbuch!J114 -> 0
A11: 8820 | B11: Portokosten | C11: =Hauptbuch!J117 -> 0
A12: 7000 | B12: Betriebliche Steuern | C12: =Hauptbuch!J120 -> 0
A13: 7510 | B13: Zinsaufwendungen | C13: =Hauptbuch!J123 -> 0
A14: =IF(SUM($F$4:$F$13)>SUM($C$4:$C$13),"3000","") ->  | B14: =IF(SUM($F$4:$F$13)>SUM($C$4:$C$13),"Eigenkapital","") ->  | C14: =IF(SUM($F$4:$F$13)>SUM($C$4:$C$13),SUM($F$4:$F$13)-SUM($C$4:$C$13),0) -> 0 | D14: =IF(SUM($F$4:$F$13)>SUM($C$4:$C$13),"","3000") -> 3000 | E14: =IF(SUM($F$4:$F$13)>SUM($C$4:$C$13),"","Eigenkapital") -> Eigenkapital | F14: =IF(SUM($F$4:$F$13)>SUM($C$4:$C$13),0,SUM($C$4:$C$13)-SUM(F4:F13)) -> 83500
C15: =IF(SUM($F$4:$F$13)>SUM($C$4:$C$13),SUM($F$4:$F$13),SUM($C$4:$C$13)) -> 83500 | F15: =IF(SUM($F$4:$F$13)>SUM($C$4:$C$13),SUM($F$4:$F$13),SUM($C$4:$C$13)) -> 83500

Sheet Bilanzbuch
A1: Bilanzbuch
A3: Aktiva | B3: 8000 Eröffnungsbilanz | F3: Passiva
A4: 0500 | B4: Grundstücke und Bauten | C4: 330000 | D4: 3000 | E4: Eigenkapital | F4: =F16-SUM(F5:F15) -> 698100
A5: 0700 | B5: Technische Anlagen und Maschinen | C5: 380500 | D5: 4200 | E5: Verbindlichkeiten g. Kreditinstituten | F5: 534000
A6: 0800 | B6: Betriebs- und Geschäftsausstattung | C6: 54900 | D6: 4400 | E6: Verbindlichkeiten a.L.u.L. | F6: 118900
A7: 0840 | B7: Fuhrpark | C7: 116000 | D7: 4800 | E7: Umsatzsteuer | F7: 11100
A8: 2000 | B8: Rohstoffe | C8: 200000
A9: 2020 | B9: Hilfsstoffe | C9: 22500
A10: 2040 | B10: Betriebsstoffe | C10: 6700
A11: 2100 | B11: Unfertige Erzeugnisse | C11: 64500
A12: 2200 | B12: Fertige Erzeugnisse | C12: 19000
A13: 2400 | B13: Forderungen a.L.u.L. | C13: 45600
A14: 2800 | B14: Bank | C14: 112600
A15: 2880 | B15: Kasse | C15: 9800
C16: =SUM(C4:C15) -> 1362100 | F16: =C16 -> 1362100
A18: Aktiva | B18: 8010 Schlussbilanz | F18: Passiva
A19: 0500 | B19: Grundstücke und Bauten | C19: =Hauptbuch!J4 -> 330000 | D19: 3000 | E19: Eigenkapital | F19: =Hauptbuch!E67 -> 614600
A20: 0700 | B20: Technische Anlagen und Maschinen | C20: =Hauptbuch!J7 -> 380500 | D20: 4200 | E20: Verbindlichkeiten g. Kreditinstituten | F20: =Hauptbuch!E71 -> 534000
A21: 0800 | B21: Betriebs- und Geschäftsausstattung | C21: =Hauptbuch!J11 -> 54900 | D21: 4400 | E21: Verbindlichkeiten a.L.u.L. | F21: =Hauptbuch!E74 -> 118900
A22: 0840 | B22: Fuhrpark | C22: =Hauptbuch!J15 -> 116000 | D22: 4800 | E22: Umsatzsteuer | F22: =Hauptbuch!E82 -> 11100
A23: 2000 | B23: Rohstoffe | C23: =Hauptbuch!J19 -> 200000
A24: 2020 | B24: Hilfsstoffe | C24: =Hauptbuch!J24 -> 22500
A25: 2040 | B25: Betriebsstoffe | C25: =Hauptbuch!J29 -> 6700
A26: 2100 | B26: Unfertige Erzeugnisse | C26: =Grundbuch!D97 -> 0
A27: 2200 | B27: Fertige Erzeugnisse | C27: =Grundbuch!D98 -> 0
A28: 2400 | B28: Forderungen a.L.u.L. | C28: =Hauptbuch!J44 -> 45600
A29: 2800 | B29: Bank | C29: =Hauptbuch!J56 -> 112600
A30: 2880 | B30: Kasse | C30: =Hauptbuch!J62 -> 9800
C31: =SUM(C19:C30) -> 1278600 | F31: =SUM(F19:F30) -> 1278600

Sheet Kontenplan
B1: Kontenplan
A3: Nr. | B3: Konto
A4: 0500 | B4: Grundstücke und Bauten
A5: 0700 | B5: Technische Anlagen und Maschinen
A6: 0800 | B6: Betriebs- und Geschäftsausstattung
A7: 0840 | B7: Fuhrpark
A8: 2000 | B8: Rohstoffe
A9: 2020 | B9: Hilfsstoffe
A10: 2030 | B10: Betriebsstoffe
A11: 2040 | B11: Betriebsstoffe
A12: 2100 | B12: Unfertige Erzeugnisse
A13: 2200 | B13: Fertige Erzeugnisse
A14: 2400 | B14: Forderungen a.L.u.L.
A15: 2600 | B15: Vorsteuer
A16: 2800 | B16: Kreditinstitute/Bank
A17: 2880 | B17: Kasse
A18: 3000 | B18: Eigenkapital
A19: 4200 | B19: Verbindlichkeiten g. Kreditinstituten
A20: 4400 | B20: Verbindlichkeiten a.L.u.L.
A21: 4800 | B21: Umsatzsteuer
A22: 5000 | B22: Umsatzerlöse
A23: 5200 | B23: Bestandsveränderungen
A24: 6000 | B24: Aufwendungen für Rohstoffe
A25: 6020 | B25: Aufwendungen für Hilfsstoffe
A26: 6030 | B26: Aufwendungen für Betriebsstoffe
A27: 6160 | B27: Fremdinstandhaltung
A28: 6200 | B28: Löhne
A29: 6300 | B29: Gehälter
A30: 6820 | B30: Portokosten
A31: 7000 | B31: Betriebliche Steuern
A32: 7510 | B32: Zinsaufwendungen
A33: 8000 | B33: Eröffnungsbilanz
A34: 8010 | B34: Schlussbilanz
A35: 8020 | B35: Gewinn und Verlust
